fUSD/lending_fUSD_20260506
["ID","MTS","AMOUNT","RATE_DAILY","PERIOD"]
[421703975,1778047923000,-228.560938,0.00042614,120]
[421703965,1778047923000,-500.0,0.00042614,30]
[421703973,1778047923000,-151.0,0.00042614,120]
[421703970,1778047923000,-151.0,0.00042614,120]
[421703969,1778047923000,-716.97946142,0.00042614,30]
[421703943,1778047923000,-500.0,0.00042614,30]
[421703945,1778047923000,-500.0,0.00042614,30]
[421703944,1778047923000,-7965.41053268,0.00042614,30]
[421703940,1778047923000,-1920.959522,0.00042614,28]
[421703942,1778047923000,-1920.959522,0.00042614,28]
[421703939,1778047923000,-1920.959522,0.00042614,28]
[421703941,1778047923000,-1920.959522,0.00042614,28]
[421703947,1778047923000,-500.0,0.00042614,60]
[421703946,1778047923000,-151.0,0.00042614,30]
[421703958,1778047923000,-1529.201548,0.00042614,120]
[421703949,1778047923000,-500.0,0.00042614,60]
[421703957,1778047923000,-1529.201548,0.00042614,120]
[421703962,1778047923000,-151.0,0.00042614,30]
[421703968,1778047923000,-500.0,0.00042614,120]
[421703948,1778047923000,-8260.13072239,0.00042614,60]
[421703959,1778047923000,-151.0,0.00042614,30]
[421703961,1778047923000,-151.0,0.00042614,120]
[421703950,1778047923000,-1529.201548,0.00042614,120]
[421703952,1778047923000,-8565.75555911,0.00042614,120]
[421703951,1778047923000,-151.0,0.00042614,60]
[421703954,1778047923000,-500.0,0.00042614,120]
[421703953,1778047923000,-500.0,0.00042614,120]
[421703955,1778047923000,-151.0,0.00042614,120]
[421703956,1778047923000,-1529.201548,0.00042614,120]
[421704026,1778047924000,-500.0,0.00042646,120]
[421704038,1778047924000,-151.0,0.00042646,30]
[421704041,1778047924000,-200.0,0.00042646,30]
[421704021,1778047924000,-1157.26,0.00042646,120]
[421704023,1778047924000,-500.0,0.00042646,120]
[421704028,1778047924000,-300.0,0.00042646,30]
[421704024,1778047924000,-500.0,0.00042646,120]
[421704018,1778047924000,-1157.26,0.00042646,120]
[421704022,1778047924000,-1157.31249873,0.00042646,120]
[421704039,1778047924000,-151.0,0.00042646,30]
[421704025,1778047924000,-500.0,0.00042646,120]
[421704029,1778047924000,-300.0,0.00042646,30]
[421704047,1778047924000,-155.84088807,0.00042646,30]
[421704030,1778047924000,-200.0,0.00042646,120]
[421704031,1778047924000,-1030.0,0.00042646,30]
[421704032,1778047924000,-315.95539499,0.00042646,30]
[421704037,1778047924000,-500.0,0.00042646,30]
[421704034,1778047924000,-6888.0,0.00042646,30]
[421704036,1778047924000,-151.0,0.00042646,30]
[421704035,1778047924000,-500.0,0.00042646,30]
[421704033,1778047924000,-500.0,0.00042646,30]
[421704044,1778047924000,-500.0,0.00042646,30]
[421704042,1778047924000,-151.0,0.00042646,30]
[421704050,1778047924000,-211.5,0.00042647,2]
[421704017,1778047924000,-1157.26,0.00042646,120]
[421704040,1778047924000,-151.0,0.00042646,30]
[421704020,1778047924000,-1157.26,0.00042646,120]
[421703991,1778047924000,-518.5,0.00042617,45]
[421704027,1778047924000,-332.26844411,0.00042646,120]
[421703994,1778047924000,-500.0,0.00042617,120]
[421703992,1778047924000,-500.0,0.00042617,120]
[421704046,1778047924000,-620.0,0.00042646,30]
[421703993,1778047924000,-7407.141672,0.00042617,120]
[421703998,1778047924000,-151.0,0.00042617,120]
[421703995,1778047924000,-633.10673435,0.00042617,120]
[421703997,1778047924000,-151.0,0.00042617,45]
[421703996,1778047924000,-151.0,0.00042617,120]
[421704002,1778047924000,-200.0,0.00042617,45]
[421703999,1778047924000,-156.587,0.00042617,45]
[421704000,1778047924000,-162.380719,0.00042617,120]
[421704001,1778047924000,-151.0,0.00042617,45]
[421704019,1778047924000,-1157.26,0.00042646,120]
[421704005,1778047924000,-200.0,0.00042617,120]
[421704004,1778047924000,-151.0,0.00042617,120]
[421704006,1778047924000,-500.0,0.00042617,45]
[421704007,1778047924000,-219.55237565,0.00042617,45]
[421704015,1778047924000,-1281.96345647,0.00042636,2]
[421704008,1778047924000,-500.0,0.00042617,120]
[421704016,1778047924000,-581.426458,0.00042646,81]
[421704012,1778047924000,-150.0,0.00042635,2]
[421704011,1778047924000,-156.48951136,0.00042618,120]
[421704010,1778047924000,-666.72878,0.00042617,120]
[421704013,1778047924000,-150.0,0.00042636,2]
[421704009,1778047924000,-642.94,0.00042617,45]
[421704014,1778047924000,-150.0,0.00042636,2]
[421704003,1778047924000,-204.02508523,0.00042617,45]
[421704043,1778047924000,-200.0,0.00042646,30]
[421704049,1778047924000,-199.40691983,0.00042646,30]
[421704051,1778047924000,-150.0,0.00042647,4]
[421704080,1778047924000,-205.440149,0.00042665,120]
[421704082,1778047924000,-205.440149,0.00042665,120]
[421704086,1778047924000,-205.440149,0.00042665,120]
[421704087,1778047924000,-205.440149,0.00042665,120]
[421704081,1778047924000,-205.440149,0.00042665,120]
[421704089,1778047924000,-205.440149,0.00042665,120]
[421704084,1778047924000,-205.440149,0.00042665,120]
[421704083,1778047924000,-205.440149,0.00042665,120]
[421704085,1778047924000,-205.440149,0.00042665,120]
[421704088,1778047924000,-205.440149,0.00042665,120]
[421704091,1778047924000,-278.092369,0.00042665,120]
[421704097,1778047924000,-278.092369,0.00042665,120]
[421704090,1778047924000,-205.440156,0.00042665,120]
[421704099,1778047924000,-278.092369,0.00042665,120]
[421704101,1778047924000,-278.092369,0.00042665,120]
[421704095,1778047924000,-278.092369,0.00042665,120]
[421704093,1778047924000,-278.092369,0.00042665,120]
[421704092,1778047924000,-278.092369,0.00042665,120]
[421704096,1778047924000,-278.092369,0.00042665,120]
[421704100,1778047924000,-278.092369,0.00042665,120]
[421704098,1778047924000,-278.092369,0.00042665,120]
[421704048,1778047924000,-1500.0,0.00042646,30]
[421704102,1778047924000,-278.092364,0.00042665,120]
[421704104,1778047924000,-649.209857,0.00042665,120]
[421704105,1778047924000,-649.209857,0.00042665,120]
[421704106,1778047924000,-649.209857,0.00042665,120]
[421704094,1778047924000,-278.092369,0.00042665,120]
[421704071,1778047924000,-180.104399,0.00042665,120]
[421704103,1778047924000,-649.209857,0.00042665,120]
[421704074,1778047924000,-180.104399,0.00042665,120]
[421704072,1778047924000,-180.104399,0.00042665,120]
[421704045,1778047924000,-226.00747013,0.00042646,30]
[421704052,1778047924000,-1380.0,0.00042647,120]
[421704054,1778047924000,-1380.0,0.00042647,120]
[421704056,1778047924000,-157.86811067,0.00042655,2]
[421704066,1778047924000,-180.104399,0.00042665,120]
[421704055,1778047924000,-350.0,0.00042649,4]
[421704058,1778047924000,-554.35,0.00042664,120]
[421704057,1778047924000,-300.0,0.00042664,120]
[421704059,1778047924000,-368.0,0.00042665,120]
[421704063,1778047924000,-1170.0,0.00042665,120]
[421704064,1778047924000,-180.104399,0.00042665,120]
[421704062,1778047924000,-346.0,0.00042665,120]
[421704053,1778047924000,-1380.0,0.00042647,120]
[421704060,1778047924000,-160.0,0.00042665,120]
[421704065,1778047924000,-180.104399,0.00042665,120]
[421704075,1778047924000,-180.104397,0.00042665,120]
[421704079,1778047924000,-205.440149,0.00042665,120]
[421704077,1778047924000,-151.0,0.00042665,120]
[421704076,1778047924000,-151.0,0.00042665,120]
[421704078,1778047924000,-151.0,0.00042665,120]
[421704068,1778047924000,-180.104399,0.00042665,120]
[421704070,1778047924000,-180.104399,0.00042665,120]
[421704067,1778047924000,-180.104399,0.00042665,120]
[421704061,1778047924000,-288.0,0.00042665,120]
[421704069,1778047924000,-180.104399,0.00042665,120]
[421704073,1778047924000,-180.104399,0.00042665,120]
[421704133,1778047925000,-151.0,0.00042665,30]
[421704138,1778047925000,-151.0,0.00042665,120]
[421704131,1778047925000,-151.0,0.00042665,30]
[421704132,1778047925000,-269.120346,0.00042665,120]
[421704130,1778047925000,-269.120346,0.00042665,120]
[421704137,1778047925000,-151.0,0.00042665,120]
[421704139,1778047925000,-151.0,0.00042665,120]
[421704140,1778047925000,-151.0,0.00042665,120]
[421704143,1778047925000,-151.0,0.00042665,120]
[421704142,1778047925000,-151.0,0.00042665,120]
[421704147,1778047925000,-151.0,0.00042665,120]
[421704141,1778047925000,-151.0,0.00042665,120]
[421704145,1778047925000,-277.281901,0.00042665,120]
[421704151,1778047925000,-274.197896,0.00042665,120]
[421704144,1778047925000,-151.0,0.00042665,120]
[421704154,1778047925000,-221.589595,0.00042665,120]
[421704155,1778047925000,-175.627278,0.00042665,60]
[421704149,1778047925000,-151.0,0.00042665,120]
[421704157,1778047925000,-175.627278,0.00042665,60]
[421704156,1778047925000,-175.627278,0.00042665,60]
[421704129,1778047925000,-269.120346,0.00042665,120]
[421704146,1778047925000,-151.0,0.00042665,120]
[421704127,1778047925000,-269.120346,0.00042665,120]
[421704117,1778047925000,-269.120346,0.00042665,120]
[421704136,1778047925000,-151.0,0.00042665,120]
[421704108,1778047925000,-649.209857,0.00042665,120]
[421704112,1778047925000,-649.209857,0.00042665,120]
[421704109,1778047925000,-269.120346,0.00042665,120]
[421704107,1778047925000,-269.120346,0.00042665,120]
[421704111,1778047925000,-269.120346,0.00042665,120]
[421704110,1778047925000,-649.209857,0.00042665,120]
[421704113,1778047925000,-649.209857,0.00042665,120]
[421704116,1778047925000,-151.0,0.00042665,30]
[421704114,1778047925000,-649.209857,0.00042665,120]
[421704115,1778047925000,-269.120346,0.00042665,120]
[421704124,1778047925000,-269.120346,0.00042665,120]
[421704119,1778047925000,-269.120346,0.00042665,120]
[421704121,1778047925000,-649.209857,0.00042665,120]
[421704122,1778047925000,-649.209857,0.00042665,120]
[421704123,1778047925000,-649.209855,0.00042665,120]
[421704118,1778047925000,-151.0,0.00042665,30]
[421704120,1778047925000,-151.0,0.00042665,30]
[421704134,1778047925000,-269.120343,0.00042665,120]
[421704126,1778047925000,-151.0,0.00042665,30]
[421704125,1778047925000,-151.0,0.00042665,30]
[421704135,1778047925000,-151.0,0.00042665,30]
[421704128,1778047925000,-151.0,0.00042665,30]
[421704148,1778047925000,-151.0,0.00042665,120]
[421704160,1778047925000,-175.627278,0.00042665,60]
[421704153,1778047925000,-151.0,0.00042665,120]
[421704183,1778047925000,-253.54,0.0002882,2]
[421704185,1778047925000,-253.54,0.00028883,30]
[421704186,1778047925000,-253.54,0.00028915,2]
[421704184,1778047925000,-253.54,0.00028852,7]
[421704187,1778047925000,-253.54,0.00028947,7]
[421704189,1778047925000,-253.54,0.0002901,2]
[421704191,1778047925000,-158.0,0.00036333,30]
[421704193,1778047925000,-300.0,0.00038395,2]
[421704190,1778047925000,-253.54,0.00029042,7]
[421704188,1778047925000,-253.54,0.00028979,30]
[421704192,1778047925000,-158.0,0.00037333,30]
[421704195,1778047925000,-500.0,0.00041003,21]
[421704196,1778047925000,-550.0,0.00042466,2]
[421704199,1778047925000,-253.54,0.00029074,30]
[421704197,1778047925000,-512.0,0.00042466,2]
[421704198,1778047925000,-85316.83048864,0.00042666,30]
[421704201,1778047925000,-475.57141954,0.00042666,30]
[421704200,1778047925000,-417.0,0.00034547,2]
[421704202,1778047925000,-6443.9844399,0.00042666,30]
[421704203,1778047925000,-464.504,0.00042666,30]
[421704150,1778047925000,-151.0,0.00042665,120]
[421704182,1778047925000,-253.54,0.00028788,30]
[421704181,1778047925000,-168.01415882,0.00022407,2]
[421704194,1778047925000,-300.0,0.00038395,2]
[421704173,1778047925000,-812.638477,0.00042665,7]
[421704152,1778047925000,-151.0,0.00042665,120]
[421704159,1778047925000,-175.627278,0.00042665,60]
[421704158,1778047925000,-175.627278,0.00042665,60]
[421704180,1778047925000,-3550.705,0.00042666,30]
[421704169,1778047925000,-400.729559,0.00042665,120]
[421704170,1778047925000,-400.729564,0.00042665,120]
[421704171,1778047925000,-812.638477,0.00042665,7]
[421704163,1778047925000,-400.729559,0.00042665,120]
[421704162,1778047925000,-175.627282,0.00042665,60]
[421704164,1778047925000,-400.729559,0.00042665,120]
[421704165,1778047925000,-400.729559,0.00042665,120]
[421704161,1778047925000,-175.627278,0.00042665,60]
[421704168,1778047925000,-400.729559,0.00042665,120]
[421704166,1778047925000,-400.729559,0.00042665,120]
[421704175,1778047925000,-7958357.46117551,0.00042666,30]
[421704177,1778047925000,-4693.40168956,0.00042666,30]
[421704174,1778047925000,-812.638479,0.00042665,7]
[421704179,1778047925000,-1515.68,0.00042666,30]
[421704178,1778047925000,-1474.59831044,0.00042666,30]
[421704172,1778047925000,-812.638477,0.00042665,7]
[421704167,1778047925000,-400.729559,0.00042665,120]
[421704176,1778047925000,-326.90425252,0.00042666,30]
[421704219,1778047926000,-13527.79,0.00027397,10]
[421704216,1778047926000,-380.32,0.00025234,30]
[421704221,1778047926000,-253.54,0.00029137,7]
[421704220,1778047926000,-253.54,0.00029105,2]
[421704225,1778047926000,-278.0,0.00037547,2]
[421704214,1778047926000,-229.48247732,0.00024946,7]
[421704211,1778047926000,-168.75110899,0.00021,2]
[421704212,1778047926000,-2514.53,0.00021273,2]
[421704213,1778047926000,-380.32,0.00024658,2]
[421704210,1778047926000,-2000.0,0.00020607,2]
[421704208,1778047926000,-429.27452614,0.00020607,2]
[421704206,1778047926000,-965.65043738,0.00020607,2]
[421704205,1778047926000,-158.0,0.0002,2]
[421704204,1778047926000,-54.14295981,0.00042666,30]
[421704209,1778047926000,-605.07503648,0.00020607,2]
[421704217,1778047926000,-380.32,0.00025523,2]
[421704207,1778047926000,-500.0,0.00013698,2]
[421704215,1778047926000,-150.83752268,0.00024946,7]
[421704238,1778047926000,999.99,0.00012893,2]
[421704236,1778047926000,-462.31375,0.00042666,30]
[421704237,1778047926000,-739.45547386,0.00042666,30]
[421704232,1778047926000,-246.48,0.00013698,2]
[421704231,1778047926000,-253.52,0.00013698,2]
[421704234,1778047926000,-500.0,0.00042465,120]
[421704233,1778047926000,-380.32,0.00026099,30]
[421704235,1778047926000,-3584.95281942,0.00042666,30]
[421704218,1778047926000,-380.32,0.00025811,7]
[421704230,1778047926000,-152555.81815777,0.00042666,30]
[421704229,1778047926000,-150.54233273,0.000419,120]
[421704226,1778047926000,-300.0,0.00038395,2]
[421704227,1778047926000,-300.0,0.00038395,2]
[421704222,1778047926000,-253.54,0.00029169,30]
[421704223,1778047926000,-253.54,0.00029201,2]
[421704224,1778047926000,-253.72,0.00029232,7]
[421704228,1778047926000,-278.0,0.00040547,2]
[421704242,1778047927000,500.0,0.00011944,2]
[421704241,1778047927000,150.99,0.00012893,2]
[421704239,1778047927000,9000.02,0.00012893,2]
[421704240,1778047927000,999.97,0.00012893,2]
[421704244,1778047928000,8536.68819803,0.00012966,2]
[421704243,1778047928000,8349.05,0.00012966,2]
[421704245,1778047930000,150.0,0.00012765,2]
[421704246,1778047931000,151.0,0.0001246,2]
[421704247,1778047932000,151.0,0.0001246,2]
[421704248,1778047933000,151.0,0.0001246,2]
[421704249,1778047933000,151.0,0.0001246,2]
[421704251,1778047934000,151.0,0.0001246,2]
[421704250,1778047934000,151.0,0.0001246,2]
[421704252,1778047935000,151.0,0.0001246,2]
[421704254,1778047936000,151.0,0.0001246,2]
[421704253,1778047936000,151.0,0.0001246,2]
[421704255,1778047937000,151.0,0.0001246,2]
[421704257,1778047938000,151.0,0.0001246,2]
[421704256,1778047938000,151.0,0.0001246,2]
[421704258,1778047939000,151.0,0.0001246,2]
[421704259,1778047939000,151.0,0.0001246,2]
[421704260,1778047940000,151.0,0.0001246,2]
[421704262,1778047941000,151.0,0.0001246,2]
[421704261,1778047941000,151.0,0.0001246,2]
[421704264,1778047942000,151.0,0.0001246,2]
[421704263,1778047942000,151.0,0.0001246,2]
[421704265,1778047943000,151.0,0.0001246,2]
[421704266,1778047978000,6980.01,0.000127,2]
[421704268,1778047978000,10000.01,0.000127,2]
[421704269,1778047978000,10000.01,0.000127,2]
[421704267,1778047978000,10000.01,0.000127,2]
[421704271,1778047979000,10000.01,0.000127,2]
[421704270,1778047979000,10000.01,0.000127,2]
[421704272,1778047979000,10000.01,0.000127,2]
[421704276,1778048207000,185.95826394,0.000126,21]
[421704277,1778048207000,278.93739595,0.00012666,21]
[421704275,1778048207000,254.68210944,0.00012658,21]
[421704278,1778048226000,152.0,0.00011527,2]
[421704279,1778048373000,150.09,6.231e-05,2]
[421704280,1778048553000,-541.90111507,0.00012105,2]
[421704281,1778048654000,500.0,0.00011955,2]
[421704282,1778048654000,-262.44888493,0.00012105,2]
[421704283,1778048657000,1103.73,0.00030137,120]
[421704284,1778048658000,2000.0,0.00011787,2]
[421704285,1778048781000,150.0,0.00011466,2]
[421704287,1778048782000,150.0,0.00011466,2]
[421704288,1778048782000,150.0,0.00011466,2]
[421704286,1778048782000,564.76,0.00027591,120]
[421704290,1778048820000,200.0,0.00011987,2]
[421704291,1778048877000,184.49208299,0.00013022,21]
[421704292,1778048881000,153.63,0.00011746,2]
[421704293,1778048884000,4276.48933521,8e-05,2]
[421704295,1778048888000,656.05801248,0.00011,2]
[421704294,1778048888000,5369.89066479,0.00011,2]
[421704297,1778048918000,177.39,0.00012103,2]
[421704296,1778048918000,177.39,0.00011712,2]
[421704300,1778048986000,-250.0,0.00012317,2]
[421704301,1778048986000,-284.34117284,0.00012461,2]
[421704302,1778048986000,-150.09,0.00012463,2]
[421704299,1778048986000,-166.66,0.00012172,2]
[421704304,1778048986000,-153.63,0.0001248,2]
[421704305,1778048986000,-177.39,0.00012493,2]
[421704306,1778048986000,-1300.0,0.000125,4]
[421704307,1778048986000,-5308.60083988,0.000125,2]
[421704303,1778048986000,-209.28798728,0.00012474,2]
[421704344,1778049106000,-10000.01,0.00012,2]
[421704343,1778049106000,399880.84758835,0.00012,2]
[421704340,1778049106000,4493.63808232,0.00013,15]
[421704341,1778049106000,-1200.0,0.00012499,2]
[421704342,1778049106000,-7290.07198752,0.000125,2]
[421704349,1778049220000,-10000.01,0.00012,2]
[421704350,1778049220000,-639725.39637792,0.00012,2]
[421704351,1778049220000,-250.0,0.000125,2]
[421704354,1778049220000,-132571.04394204,0.000125,2]
[421704355,1778049220000,-66841.68857292,0.000125,2]
[421704353,1778049220000,-153797.0779813,0.000125,2]
[421704357,1778049220000,-688197.27827333,0.000125,2]
[421704352,1778049220000,-1435994.22840301,0.000125,2]
[421704356,1778049220000,-10000.01,0.000125,2]
[421704358,1778049220000,-150.0,0.000125,2]
[421704399,1778049221000,-500.0,0.00012699,2]
[421704383,1778049221000,-151.0,0.00012692,2]
[421704385,1778049221000,-151.0,0.00012692,2]
[421704384,1778049221000,-151.0,0.00012692,2]
[421704387,1778049221000,-151.0,0.00012692,2]
[421704388,1778049221000,-151.0,0.00012692,2]
[421704390,1778049221000,-151.0,0.00012692,2]
[421704391,1778049221000,-151.0,0.00012692,2]
[421704386,1778049221000,-151.0,0.00012692,2]
[421704398,1778049221000,-291.81242439,0.00012699,2]
[421704389,1778049221000,-151.0,0.00012692,2]
[421704393,1778049221000,-151.0,0.00012692,2]
[421704394,1778049221000,-151.0,0.00012692,2]
[421704395,1778049221000,-151.0,0.00012692,2]
[421704397,1778049221000,-151.0,0.00012697,2]
[421704396,1778049221000,-151.0,0.00012692,2]
[421704403,1778049221000,-264.3673305,0.00012699,2]
[421704400,1778049221000,-633.77178352,0.00012699,2]
[421704401,1778049221000,-500.0,0.00012699,2]
[421704381,1778049221000,-151.0,0.00012692,2]
[421704392,1778049221000,-151.0,0.00012692,2]
[421704382,1778049221000,-151.0,0.00012692,2]
[421704402,1778049221000,-500.0,0.00012699,2]
[421704359,1778049221000,-176.0,0.000125,2]
[421704360,1778049221000,-166.66,0.00012574,2]
[421704366,1778049221000,-2700.0,0.000126,4]
[421704363,1778049221000,-333.864,0.000126,2]
[421704361,1778049221000,-1461988.1934,0.00012592,2]
[421704362,1778049221000,-3338.431,0.000126,2]
[421704365,1778049221000,-5000.0,0.000126,2]
[421704364,1778049221000,-22643.39657241,0.000126,2]
[421704367,1778049221000,-1497.223,0.000126,2]
[421704380,1778049221000,-151.0,0.00012692,2]
[421704369,1778049221000,-5068.58406032,0.00012656,2]
[421704378,1778049221000,-151.0,0.00012692,2]
[421704379,1778049221000,-151.0,0.00012692,2]
[421704377,1778049221000,-151.0,0.00012692,2]
[421704373,1778049221000,-3344.7143207,0.00012673,2]
[421704371,1778049221000,-500.0,0.00012673,2]
[421704372,1778049221000,-168.25532997,0.00012673,2]
[421704370,1778049221000,-18953.0,0.00012658,2]
[421704376,1778049221000,-6242.2,0.00012685,2]
[421704374,1778049221000,-380.01609046,0.00012673,2]
[421704368,1778049221000,-153.12137068,0.00012637,2]
[421704404,1778049221000,-500.0,0.00012699,2]
[421704375,1778049221000,-154.99317028,0.00012673,2]
[421704407,1778049221000,-150.0,0.00012699,2]
[421704428,1778049221000,-1000.0,0.00012699,2]
[421704429,1778049221000,-1000.0,0.00012699,2]
[421704434,1778049221000,-1000.0,0.00012699,2]
[421704430,1778049221000,-1000.0,0.00012699,2]
[421704436,1778049221000,-1000.0,0.00012699,2]
[421704438,1778049221000,-500.0,0.00012699,2]
[421704437,1778049221000,-387.51207106,0.00012699,2]
[421704439,1778049221000,-500.0,0.00012699,2]
[421704440,1778049221000,-500.0,0.00012699,2]
[421704433,1778049221000,-1000.0,0.00012699,2]
[421704441,1778049221000,-500.0,0.00012699,2]
[421704445,1778049221000,-500.0,0.00012699,2]
[421704443,1778049221000,-500.0,0.00012699,2]
[421704444,1778049221000,-500.0,0.00012699,2]
[421704442,1778049221000,-500.0,0.00012699,2]
[421704448,1778049221000,-500.0,0.00012699,2]
[421704450,1778049221000,-500.0,0.00012699,2]
[421704449,1778049221000,-500.0,0.00012699,2]
[421704451,1778049221000,-500.0,0.00012699,2]
[421704406,1778049221000,-150.0,0.00012699,2]
[421704446,1778049221000,-500.0,0.00012699,2]
[421704432,1778049221000,-1000.0,0.00012699,2]
[421704447,1778049221000,-500.0,0.00012699,2]
[421704431,1778049221000,-1000.0,0.00012699,2]
[421704411,1778049221000,-518.72617076,0.00012699,2]
[421704435,1778049221000,-1000.0,0.00012699,2]
[421704412,1778049221000,-150.0,0.00012699,2]
[421704408,1778049221000,-150.0,0.00012699,2]
[421704410,1778049221000,-150.0,0.00012699,2]
[421704413,1778049221000,-150.0,0.00012699,2]
[421704405,1778049221000,-446.39039752,0.00012699,2]
[421704414,1778049221000,-153.39936383,0.00012699,2]
[421704415,1778049221000,-1000.0,0.00012699,2]
[421704416,1778049221000,-1000.0,0.00012699,2]
[421704409,1778049221000,-150.0,0.00012699,2]
[421704419,1778049221000,-1000.0,0.00012699,2]
[421704418,1778049221000,-1000.0,0.00012699,2]
[421704423,1778049221000,-1000.0,0.00012699,2]
[421704422,1778049221000,-1000.0,0.00012699,2]
[421704424,1778049221000,-1000.0,0.00012699,2]
[421704421,1778049221000,-1000.0,0.00012699,2]
[421704420,1778049221000,-1000.0,0.00012699,2]
[421704425,1778049221000,-1000.0,0.00012699,2]
[421704417,1778049221000,-1000.0,0.00012699,2]
[421704426,1778049221000,-1000.0,0.00012699,2]
[421704427,1778049221000,-1000.0,0.00012699,2]
[421704482,1778049222000,-500.0,0.00012699,2]
[421704486,1778049222000,-500.0,0.00012699,2]
[421704489,1778049222000,-500.0,0.00012699,2]
[421704485,1778049222000,-500.0,0.00012699,2]
[421704487,1778049222000,-500.87192563,0.00012699,2]
[421704483,1778049222000,-500.0,0.00012699,2]
[421704490,1778049222000,-500.0,0.00012699,2]
[421704491,1778049222000,-500.0,0.00012699,2]
[421704484,1778049222000,-500.0,0.00012699,2]
[421704492,1778049222000,-500.0,0.00012699,2]
[421704488,1778049222000,-500.0,0.00012699,2]
[421704494,1778049222000,-500.0,0.00012699,2]
[421704499,1778049222000,-500.0,0.00012699,2]
[421704496,1778049222000,-500.0,0.00012699,2]
[421704493,1778049222000,-500.0,0.00012699,2]
[421704495,1778049222000,-500.0,0.00012699,2]
[421704497,1778049222000,-500.0,0.00012699,2]
[421704504,1778049222000,-300.0,0.00012699,2]
[421704498,1778049222000,-500.0,0.00012699,2]
[421704502,1778049222000,-500.0,0.00012699,2]
[421704503,1778049222000,-500.0,0.00012699,2]
[421704500,1778049222000,-500.0,0.00012699,2]
[421704501,1778049222000,-500.0,0.00012699,2]
[421704505,1778049222000,-500.0,0.00012699,2]
[421704481,1778049222000,-500.0,0.00012699,2]
[421704507,1778049222000,-500.0,0.00012699,2]
[421704480,1778049222000,-500.0,0.00012699,2]
[421704454,1778049222000,-500.0,0.00012699,2]
[421704476,1778049222000,-500.0,0.00012699,2]
[421704452,1778049222000,-500.0,0.00012699,2]
[421704453,1778049222000,-500.0,0.00012699,2]
[421704457,1778049222000,-500.0,0.00012699,2]
[421704458,1778049222000,-500.0,0.00012699,2]
[421704456,1778049222000,-500.0,0.00012699,2]
[421704455,1778049222000,-500.0,0.00012699,2]
[421704459,1778049222000,-500.0,0.00012699,2]
[421704461,1778049222000,-500.0,0.00012699,2]
[421704460,1778049222000,-500.0,0.00012699,2]
[421704462,1778049222000,-500.0,0.00012699,2]
[421704468,1778049222000,-500.0,0.00012699,2]
[421704464,1778049222000,-500.0,0.00012699,2]
[421704469,1778049222000,-500.0,0.00012699,2]
[421704463,1778049222000,-500.0,0.00012699,2]
[421704467,1778049222000,-346.10792036,0.00012699,2]
[421704466,1778049222000,-500.0,0.00012699,2]
[421704465,1778049222000,-500.0,0.00012699,2]
[421704470,1778049222000,-500.0,0.00012699,2]
[421704472,1778049222000,-500.0,0.00012699,2]
[421704471,1778049222000,-500.0,0.00012699,2]
[421704477,1778049222000,-500.0,0.00012699,2]